fUST/lending_fUST_20251121
["ID","MTS","AMOUNT","RATE_DAILY","PERIOD"]
[394571601,1763724632898,-500.0,0.0001544,2]
[394571602,1763724632907,-500.0,0.0001544,2]
[394571603,1763724632916,-500.0,0.0001544,2]
[394571604,1763724632926,-500.0,0.0001544,2]
[394571605,1763724632935,-500.0,0.0001544,2]
[394571606,1763724632944,-500.0,0.0001544,2]
[394571607,1763724632954,-439.74317123,0.0001544,2]
[394571608,1763724632963,-300.0,0.0001544,2]
[394571609,1763724632972,-159.87958418,0.0001559,2]
[394571610,1763724632986,-756.1728898,0.00015786,2]
[394571611,1763724632995,-290.7708313,0.00016227,2]
[394571699,1763724638339,-701.99014555,0.0001544,2]
[394571702,1763724638396,-9186.51367462,0.0001544,2]
[394571704,1763724638407,-281.04,0.0001544,2]
[394571928,1763724640512,-31734.01177929,0.0001544,2]
[394571935,1763724640566,-532.5,0.0001544,2]
[394572261,1763724645066,-1657.4682726,0.0001544,2]
[394572263,1763724645090,-5906.47612794,0.0001544,2]
[394572264,1763724645100,-62.35975757,0.00016227,2]
[394572265,1763724645110,-414.0,0.00016318,2]
[394572266,1763724645119,-200.0,0.00016326,2]
[394572267,1763724645130,-154.772403,0.00016526,2]
[394572270,1763724645140,-6587.8403195,0.000169,2]
[394572309,1763724646586,-28038.12987794,0.000169,2]
[394572310,1763724646596,-5180.73179322,0.00017,2]
[394572311,1763724646605,-900.4973477,0.00017082,2]
[394572312,1763724646614,-156.006,0.000173,2]
[394572313,1763724646624,-154.772403,0.000173,3]
[394572314,1763724646633,-258.0,0.00017326,2]
[394572315,1763724646642,-210.66486386,0.00017807,3]
[394572316,1763724646652,-497.05052593,0.00018,2]
[394572317,1763724646661,-396.1023285,0.0001834,2]
[394572318,1763724646671,-396.1023285,0.0001834,2]
[394572319,1763724646680,-396.1023285,0.0001834,2]
[394572320,1763724646690,-396.1023285,0.0001834,2]
[394572321,1763724646699,-287.49546827,0.00018589,2]
[394572322,1763724646709,-2561.49743784,0.00018647,2]
[394572323,1763724646718,-3000.0,0.00018808,2]
[394572324,1763724646727,-302.54622906,0.000189,2]
[394572325,1763724646737,-278.30495648,0.000189,2]
[394572326,1763724646746,-27545.26808407,0.00019,2]
[394572377,1763724807154,-185.25413399,8.422e-05,2]
[394572378,1763724807176,-64.74682729,8.507e-05,2]
[394572455,1763725269742,722.87040842,0.00025077,120]
[394572462,1763725377871,-189.87371144,8.338e-05,2]
[394572463,1763725378076,-150.0,8.423e-05,2]
[394572464,1763725378097,-270.84390582,8.507e-05,2]
[394572489,1763725599147,-6.40744677,8.507e-05,2]
[394572490,1763725599176,-177.0,0.00010423,2]
[394572491,1763725599205,-39.62078824,0.00012423,2]
[394572492,1763725641095,-164.37921176,0.00012298,2]
[394572493,1763725641115,-164.37921176,0.00012423,2]
[394572494,1763725641135,-534.00901,0.00013699,2]
[394572498,1763725652087,-619.695668,0.00013699,2]
[394572499,1763725652107,-403.0821296,0.00013699,2]
[394572500,1763725652128,-278.129832,0.00013826,2]
[394572501,1763725652148,-231.0,0.00014423,2]
[394572502,1763725652168,-277.25135259,0.00014519,2]
[394572503,1763725652187,-353.13058887,0.00014719,2]
[394572504,1763725652206,-4635.1855696,0.00014756,2]
[394572505,1763725652226,-1921.12307838,0.00014904,2]
[394572506,1763725652246,-1529.93071495,0.00014999,2]
[394572524,1763725831612,-152.417821,0.00010583,2]
[394572526,1763725831622,-152.417821,0.0001365,2]
[394572528,1763725831634,-353.13058887,0.00014895,2]
[394572530,1763725831643,-50000.0,0.00014998,2]
[394572532,1763725831654,-500.0,0.00014998,2]
[394572535,1763725831663,-500.0,0.00014998,2]
[394572537,1763725831675,-500.0,0.00014998,2]
[394572538,1763725831684,-500.0,0.00014998,2]
[394572539,1763725831694,-500.0,0.00014998,2]
[394572540,1763725831707,-630.21546991,0.00014998,2]
[394572541,1763725831723,-500.0,0.00014998,2]
[394572542,1763725831738,-500.0,0.00014998,2]
[394572543,1763725831748,-254.64585553,0.00014998,2]
[394572544,1763725831758,-1200.0,0.00014998,2]
[394572545,1763725831768,-150.0,0.00014998,2]
[394572546,1763725831778,-2010.0,0.00015004,2]
[394572547,1763725831788,-256.75655889,0.00015715,2]
[394572548,1763725831798,-153.07828241,0.00015715,2]
[394572549,1763725831808,-2789.2535176,0.00016655,2]
[394572551,1763725831818,-152.417821,0.00016716,2]
[394572552,1763725831827,-414.0,0.00016872,2]
[394572553,1763725831837,-177.0,0.00016998,2]
[394572554,1763725831847,-152.417821,0.000173,3]
[394572555,1763725831857,-397.5405324,0.00017381,2]
[394572556,1763725831866,-156.006,0.00017707,2]
[394572557,1763725831879,-1000.0,0.00018291,5]
[394572558,1763725831888,-396.1023285,0.00018441,2]
[394572559,1763725831898,-4300.80590421,0.00018651,2]
[394572560,1763725831907,-2044.69446642,0.00018708,2]
[394572561,1763725831918,-3000.0,0.00018808,2]
[394572562,1763725831929,-204.0,0.00018998,2]
[394572563,1763725831939,-75963.29942701,0.00019,2]
[394572564,1763725831989,-159.18797806,0.00014997,2]
[394572565,1763725831999,-216.82478455,0.00019,2]
[394572595,1763725837587,-318.16179513,0.00014997,2]
[394572597,1763725837596,-500.0,0.00014997,2]
[394572599,1763725837606,-500.0,0.00014997,2]
[394572601,1763725837615,-500.0,0.00014997,2]
[394572603,1763725837624,-194.54029011,0.00014997,2]
[394572606,1763725837637,-363.43507336,0.00014997,2]
[394572608,1763725837646,-500.0,0.00014997,2]
[394572610,1763725837655,-846.01746057,0.00018727,2]
[394572612,1763725837666,-616.52065901,0.00018727,2]
[394572614,1763725837678,-582.15634684,0.00018727,2]
[394572616,1763725837687,-4300.80590421,0.00018853,2]
[394572617,1763725837696,-6274.60770437,0.00019,2]
[394572618,1763725837705,-151.0,0.00019,2]
[394572619,1763725837713,-900.0,0.00019,4]
[394572620,1763725837723,-594.8582363,0.00019047,2]
[394572621,1763725837732,-174.18942,0.00019635,2]
[394572622,1763725837741,-398.5283295,0.0001972,2]
[394572623,1763725837750,-152.417821,0.00019783,2]
[394572624,1763725837759,-500.0,0.0001981,2]
[394572625,1763725837769,-1000.0,0.0001984,5]
[394572626,1763725837778,-1000.0,0.0001986,5]
[394572627,1763725837788,-414.0,0.00019872,2]
[394572628,1763725837797,-1000.0,0.0001988,5]
[394572629,1763725837808,-152.292387,0.000199,7]
[394572630,1763725837817,-1000.0,0.000199,5]
[394572631,1763725837826,-50000.0,0.000199,2]
[394572632,1763725837834,-3000.0,0.00019904,2]
[394572633,1763725837844,-1000.0,0.0001992,5]
[394572634,1763725837853,-1000.0,0.0001994,5]
[394572635,1763725837862,-165.626539,0.0001996,7]
[394572636,1763725837871,-165.626539,0.0001996,7]
[394572637,1763725837881,-165.626539,0.0001996,7]
[394572638,1763725837890,-165.626539,0.0001996,7]
[394572639,1763725837899,-1000.0,0.0001996,5]
[394572640,1763725837907,-1000.0,0.0001998,5]
[394572641,1763725837916,-186.560179,0.0001999,7]
[394572642,1763725837926,-151.0,0.0001999,7]
[394572644,1763725837935,-321.042743,0.0001999,7]
[394572646,1763725837945,-321.042743,0.0001999,7]
[394572648,1763725837954,-321.042743,0.0001999,7]
[394572650,1763725837963,-321.042743,0.0001999,7]
[394572652,1763725837972,-352.286462,0.0001999,7]
[394572654,1763725837981,-352.286462,0.0001999,7]
[394572656,1763725837990,-2671.695109,0.0001999,7]
[394572658,1763725837999,-352.286462,0.0001999,7]
[394572660,1763725838009,-2671.695109,0.0001999,7]
[394572662,1763725838018,-352.286462,0.0001999,7]
[394572664,1763725838028,-685.742288,0.0001999,7]
[394572666,1763725838037,-685.742288,0.0001999,7]
[394572668,1763725838046,-685.742288,0.0001999,7]
[394572670,1763725838055,-685.742288,0.0001999,7]
[394572672,1763725838065,-281.437576,0.0001999,7]
[394572674,1763725838075,-516.888364,0.0001999,7]
[394572676,1763725838084,-703.785203,0.0001999,7]
[394572678,1763725838094,-703.785203,0.0001999,7]
[394572680,1763725838103,-516.888364,0.0001999,7]
[394572682,1763725838112,-516.888364,0.0001999,7]
[394572684,1763725838126,-703.785203,0.0001999,7]
[394572686,1763725838136,-516.888364,0.0001999,7]
[394572688,1763725838145,-703.785203,0.0001999,7]
[394572690,1763725838155,-1207.463057,0.0001999,7]
[394572693,1763725838176,-1207.463057,0.0001999,7]
[394572696,1763725838186,-1418.318198,0.0001999,7]
[394572698,1763725838197,-1207.463057,0.0001999,7]
[394572700,1763725838206,-918.421422,0.0001999,7]
[394572702,1763725838216,-1418.318198,0.0001999,7]
[394572704,1763725838226,-1207.463057,0.0001999,7]
[394572706,1763725838235,-1418.318198,0.0001999,7]
[394572708,1763725838245,-1418.318198,0.0001999,7]
[394572710,1763725838254,-727.17287,0.0001999,7]
[394572712,1763725838264,-727.17287,0.0001999,7]
[394572714,1763725838274,-727.17287,0.0001999,7]
[394572716,1763725838284,-727.17287,0.0001999,7]
[394572718,1763725838294,-167.73306,0.0001999,7]
[394572720,1763725838304,-167.73306,0.0001999,7]
[394572722,1763725838314,-167.73306,0.0001999,7]
[394572724,1763725838324,-167.73306,0.0001999,7]
[394572726,1763725838335,-1592.780368,0.0001999,7]
[394572728,1763725838344,-1592.780368,0.0001999,7]
[394572730,1763725838354,-1592.780368,0.0001999,7]
[394572732,1763725838366,-1592.780368,0.0001999,7]
[394572734,1763725838376,-169.469656,0.0001999,7]
[394572736,1763725838386,-169.469656,0.0001999,7]
[394572738,1763725838396,-169.469656,0.0001999,7]
[394572740,1763725838407,-169.469656,0.0001999,7]
[394572742,1763725838417,-169.469656,0.0001999,7]
[394572744,1763725838426,-169.469656,0.0001999,7]
[394572746,1763725838436,-151.0,0.0001999,7]
[394572748,1763725838447,-151.0,0.0001999,7]
[394572750,1763725838456,-169.469656,0.0001999,7]
[394572752,1763725838466,-169.469656,0.0001999,7]
[394572754,1763725838476,-151.0,0.0001999,7]
[394572756,1763725838486,-151.0,0.0001999,7]
[394572758,1763725838497,-151.0,0.0001999,7]
[394572760,1763725838506,-151.0,0.0001999,7]
[394572762,1763725838516,-151.0,0.0001999,7]
[394572764,1763725838525,-151.0,0.0001999,7]
[394572766,1763725838535,-2225.51792,0.0001999,7]
[394572768,1763725838544,-2225.51792,0.0001999,7]
[394572770,1763725838554,-2175.74648349,0.0001999,7]
[394572776,1763725838600,-49.77143651,0.0001999,7]
[394572778,1763725838610,-1903.59450345,0.0001999,7]
[394572781,1763725838633,-321.92341655,0.0001999,7]
[394572783,1763725838647,-2225.51792,0.0001999,7]
[394572785,1763725838657,-2225.51792,0.0001999,7]
[394572787,1763725838666,-2225.51792,0.0001999,7]
[394572789,1763725838675,-2225.51792,0.0001999,7]
[394572791,1763725838685,-604.674497,0.0001999,7]
[394572793,1763725838695,-250.066685,0.0001999,7]
[394572795,1763725838705,-250.066685,0.0001999,7]
[394572797,1763725838714,-250.066685,0.0001999,7]
[394572799,1763725838724,-250.066685,0.0001999,7]
[394572801,1763725838733,-604.674497,0.0001999,7]
[394572804,1763725838744,-604.674497,0.0001999,7]
[394572806,1763725838753,-1009.13,0.00019999,2]
[394572808,1763725838762,-150.0,0.0002,2]
[394572810,1763725838772,-1000.0,0.0002,20]
[394572812,1763725838780,-240.0,0.0002,2]
[394572813,1763725838790,-151.0,0.0002,7]
[394572816,1763725838800,-151.0,0.0002,7]
[394572818,1763725838809,-151.0,0.0002,7]
[394572819,1763725838820,-151.0,0.0002,7]
[394572822,1763725838830,-272.903675,0.0002,7]
[394572824,1763725838840,-272.903675,0.0002,7]
[394572826,1763725838849,-272.903675,0.0002,7]
[394572828,1763725838858,-272.903675,0.0002,7]
[394572829,1763725838868,-155.529772,0.0002,7]
[394572831,1763725838878,-155.529772,0.0002,7]
[394572834,1763725838888,-155.529772,0.0002,7]
[394572836,1763725838897,-165.626539,0.0002,7]
[394572838,1763725838907,-165.626539,0.0002,7]
[394572840,1763725838917,-165.626539,0.0002,7]
[394572842,1763725838927,-165.626539,0.0002,7]
[394572844,1763725838938,-151.0,0.0002,7]
[394572846,1763725838948,-151.0,0.0002,7]
[394572848,1763725838957,-151.0,0.0002,7]
[394572850,1763725838967,-151.0,0.0002,7]
[394572852,1763725838977,-151.0,0.0002,7]
[394572854,1763725838987,-151.0,0.0002,7]
[394572856,1763725838996,-321.042743,0.0002,7]
[394572858,1763725839006,-321.042743,0.0002,7]
[394572860,1763725839016,-321.042743,0.0002,7]
[394572862,1763725839026,-321.042743,0.0002,7]
[394572864,1763725839035,-321.042743,0.0002,7]
[394572866,1763725839044,-321.042743,0.0002,7]
[394572868,1763725839054,-321.042743,0.0002,7]
[394572870,1763725839063,-321.042743,0.0002,7]
[394572872,1763725839074,-352.286462,0.0002,7]
[394572874,1763725839084,-352.286462,0.0002,7]
[394572876,1763725839093,-352.286462,0.0002,7]
[394572878,1763725839102,-352.286462,0.0002,7]
[394572880,1763725839113,-2671.695109,0.0002,7]
[394572882,1763725839123,-2671.695109,0.0002,7]
[394572884,1763725839134,-352.286462,0.0002,7]
[394572886,1763725839143,-352.286462,0.0002,7]
[394572888,1763725839153,-2671.695109,0.0002,7]
[394572890,1763725839162,-2671.695109,0.0002,7]
[394572892,1763725839172,-352.286462,0.0002,7]
[394572894,1763725839182,-352.286462,0.0002,7]
[394572896,1763725839192,-685.742288,0.0002,7]
[394572898,1763725839202,-685.742288,0.0002,7]
[394572901,1763725839211,-685.742288,0.0002,7]
[394572903,1763725839221,-685.742288,0.0002,7]
[394572905,1763725839231,-685.742288,0.0002,7]
[394572906,1763725839241,-685.742288,0.0002,7]
[394572908,1763725839250,-685.742288,0.0002,7]
[394572910,1763725839260,-685.742288,0.0002,7]
[394572913,1763725839270,-281.437576,0.0002,7]
[394572916,1763725839280,-516.888364,0.0002,7]
[394572917,1763725839290,-703.785203,0.0002,7]
[394572921,1763725839299,-516.888364,0.0002,7]
[394572923,1763725839309,-703.785203,0.0002,7]
[394572925,1763725839318,-516.888364,0.0002,7]
[394572927,1763725839329,-703.785203,0.0002,7]
[394572930,1763725839338,-516.888364,0.0002,7]
[394572933,1763725839347,-703.785203,0.0002,7]
[394572935,1763725839359,-516.888364,0.0002,7]
[394572937,1763725839370,-516.888364,0.0002,7]
[394572939,1763725839380,-703.785203,0.0002,7]
[394572961,1763725839588,-703.785203,0.0002,7]
[394572963,1763725839597,-516.888364,0.0002,7]
[394572965,1763725839607,-516.888364,0.0002,7]
[394572967,1763725839617,-636.49947,0.0002,7]
[394572969,1763725839627,-703.785203,0.0002,7]
[394572972,1763725839638,-703.785203,0.0002,7]
[394572974,1763725839648,-1207.463057,0.0002,7]
[394572975,1763725839658,-1207.463057,0.0002,7]
[394572977,1763725839667,-1207.463057,0.0002,7]
[394572979,1763725839676,-1207.463057,0.0002,7]
[394572981,1763725839686,-1418.318198,0.0002,7]
[394572983,1763725839695,-1418.318198,0.0002,7]
[394572985,1763725839705,-1207.463057,0.0002,7]
[394572988,1763725839714,-1207.463057,0.0002,7]
[394572989,1763725839723,-1418.318198,0.0002,7]
[394572991,1763725839732,-1418.318198,0.0002,7]
[394572993,1763725839742,-1207.463057,0.0002,7]
[394572995,1763725839751,-1207.463057,0.0002,7]
[394572997,1763725839760,-1418.318198,0.0002,7]
[394572999,1763725839770,-1418.318198,0.0002,7]
[394573001,1763725839779,-1418.318198,0.0002,7]
[394573003,1763725839788,-1418.318198,0.0002,7]
[394573005,1763725839797,-727.17287,0.0002,7]
[394573007,1763725839806,-727.17287,0.0002,7]
[394573009,1763725839815,-727.17287,0.0002,7]
[394573011,1763725839824,-727.17287,0.0002,7]
[394573013,1763725839833,-727.17287,0.0002,7]
[394573015,1763725839842,-727.17287,0.0002,7]
[394573017,1763725839851,-601.76397805,0.0002,7]
[394573020,1763725839864,-125.40889195,0.0002,7]
[394573022,1763725839873,-727.17287,0.0002,7]
[394573024,1763725839884,-167.73306,0.0002,7]
[394573026,1763725839893,-167.73306,0.0002,7]
[394573028,1763725839903,-167.73306,0.0002,7]
[394573030,1763725839914,-167.73306,0.0002,7]
[394573032,1763725839925,-167.73306,0.0002,7]
[394573034,1763725839934,-167.73306,0.0002,7]
[394573036,1763725839943,-167.73306,0.0002,7]
[394573038,1763725839952,-167.73306,0.0002,7]
[394573040,1763725839961,-1592.780368,0.0002,7]
[394573042,1763725839970,-1592.780368,0.0002,7]
[394573044,1763725839978,-1592.780368,0.0002,7]
[394573046,1763725839987,-1213.23647706,0.0002,7]
[394573048,1763725839999,-1930.02757594,0.0002,7]
[394573050,1763725840008,-1592.780368,0.0002,7]
[394573052,1763725840017,-1592.780368,0.0002,7]
[394573054,1763725840026,-1592.780368,0.0002,7]
[394573056,1763725840035,-1592.780368,0.0002,7]
[394573058,1763725840044,-1592.780368,0.0002,7]
[394573060,1763725840053,-169.469656,0.0002,7]
[394573062,1763725840061,-169.469656,0.0002,7]
[394573063,1763725840070,-169.469656,0.0002,7]
[394573066,1763725840080,-169.469656,0.0002,7]
[394573067,1763725840089,-169.469656,0.0002,7]
[394573070,1763725840099,-169.469656,0.0002,7]
[394573072,1763725840109,-151.0,0.0002,7]
[394573074,1763725840118,-169.469656,0.0002,7]
[394573076,1763725840127,-169.469656,0.0002,7]
[394573078,1763725840138,-151.0,0.0002,7]
[394573080,1763725840147,-151.0,0.0002,7]
[394573082,1763725840157,-151.0,0.0002,7]
[394573084,1763725840166,-151.0,0.0002,7]
[394573086,1763725840175,-151.0,0.0002,7]
[394573088,1763725840185,-151.0,0.0002,7]
[394573090,1763725840194,-2225.51792,0.0002,7]
[394573092,1763725840205,-2225.51792,0.0002,7]
[394573094,1763725840215,-2225.51792,0.0002,7]
[394573095,1763725840224,-2225.51792,0.0002,7]
[394573097,1763725840234,-2225.51792,0.0002,7]
[394573099,1763725840244,-2225.51792,0.0002,7]
[394573101,1763725840253,-2225.51792,0.0002,7]
[394573103,1763725840262,-2225.51792,0.0002,7]
[394573105,1763725840272,-250.066685,0.0002,7]
[394573107,1763725840281,-250.066685,0.0002,7]
[394573109,1763725840291,-250.066685,0.0002,7]
[394573111,1763725840301,-215.48217788,0.0002,7]
[394573465,1763725845103,-1379.4733032,0.0001355,2]
[394573466,1763725845113,-34.58450712,0.0002,7]
[394573467,1763725845123,-250.066685,0.0002,7]
[394573468,1763725845132,-250.066685,0.0002,7]
[394573469,1763725845144,-250.066677,0.0002,7]
[394573470,1763725845154,-604.674497,0.0002,7]
[394573471,1763725845163,-113.22852444,0.0002,2]
[394573830,1763726849100,-277.43612524,8.422e-05,2]
[394573831,1763726849120,-277.43612524,8.507e-05,2]
[394573832,1763726849139,-27.86450493,0.00012229,2]
[394573833,1763726850082,-2731.08210147,0.00012229,2]
[394573834,1763726850101,-756.77,0.00012329,2]
[394573835,1763726850121,-630.64,0.00012329,2]
[394573836,1763726850140,-525.53,0.00012329,2]
[394573837,1763726850159,-656.95,0.00012329,2]
[394573838,1763726850183,-206.62175082,0.00013383,2]
[394573839,1763726850203,-150.0,0.00013503,2]
[394573840,1763726850224,-134.98602725,0.00013623,2]
[394573869,1763726967157,-158.38646747,8.422e-05,2]
[394573870,1763726967389,-150.0,8.465e-05,2]
[394573871,1763726967413,-158.38646747,8.507e-05,2]
[394573872,1763726967435,-33.22706506,8.507e-05,2]
[394573873,1763726997198,-206.62175082,8.407e-05,2]
[394573874,1763726997221,-93.37824918,8.422e-05,2]
[394573875,1763726999505,155.13,0.00015042,103]
[394573880,1763727029004,168.0,0.000204,120]
[394573918,1763727031880,-147.37431789,8.422e-05,2]
[394573920,1763727031890,-240.75256707,8.507e-05,2]
[394573922,1763727031903,-5000.0,8.701e-05,2]
[394573924,1763727031912,-177.0,0.00010465,2]
[394573926,1763727031922,-169.454749,0.00011079,2]
[394573928,1763727031933,-204.0,0.00012465,2]
[394573930,1763727031942,-353.13058887,0.00013868,2]
[394573932,1763727031952,-169.454749,0.00013929,2]
[394573934,1763727031962,-272.4615307,0.00014192,2]
[394573936,1763727031971,-231.0,0.00014465,2]
[394573938,1763727031980,-1722.55388238,0.00014795,2]
[394573940,1763727031990,-181.13505221,0.000148,2]
[394573942,1763727031999,-306.07176173,0.000148,2]
[394573944,1763727032008,-300.0,0.00014894,2]
[394573946,1763727032018,-300.0,0.00014894,2]
[394573948,1763727032027,-50000.0,0.00014895,2]
[394573950,1763727032036,-500.0,0.00014895,2]
[394573952,1763727032045,-222.71325659,0.00014895,2]
[394573954,1763727032055,-1948.98054785,0.00014895,2]
[394573956,1763727032064,-1948.98054785,0.00014895,2]
[394573958,1763727032073,-1948.98054785,0.00014895,2]
[394573960,1763727032082,-500.0,0.00014895,2]
[394573962,1763727032091,-1948.98054785,0.00014895,2]
[394573964,1763727032100,-1948.98054785,0.00014895,2]
[394573966,1763727032109,-500.0,0.00014895,2]
[394573968,1763727032118,-1948.98054785,0.00014895,2]
[394573970,1763727032127,-1948.98054785,0.00014895,2]
[394573972,1763727032136,-290.58275443,0.00014895,2]
[394573974,1763727032148,-1948.98054785,0.00014895,2]
[394573976,1763727032158,-1948.98054785,0.00014895,2]
[394573978,1763727032167,-1948.98054785,0.00014895,2]
[394573980,1763727032176,-1948.98054785,0.00014895,2]
[394573982,1763727032186,-1948.98054785,0.00014895,2]
[394573984,1763727032195,-1948.98054785,0.00014895,2]
[394573986,1763727032204,-2073.00658272,0.00014895,2]
[394573988,1763727032214,-2073.00658272,0.00014895,2]
[394573990,1763727032222,-2073.00658272,0.00014895,2]
[394573992,1763727032231,-2073.00658272,0.00014895,2]
[394573994,1763727032240,-2073.00658272,0.00014895,2]
[394573996,1763727032250,-2073.00658272,0.00014895,2]
[394573998,1763727032258,-2073.00658272,0.00014895,2]
[394574000,1763727032268,-2073.00658272,0.00014895,2]
[394574002,1763727032277,-2073.00658272,0.00014895,2]
[394574004,1763727032285,-2073.00658272,0.00014895,2]
[394574006,1763727032295,-159.18797806,0.00014895,2]
[394574008,1763727032303,-1184.60297874,0.00015666,2]
[394574010,1763727032312,-258.0,0.00016465,2]
[394574012,1763727032321,-1184.60297874,0.00016467,2]
[394574014,1763727032330,-169.454749,0.0001678,2]
[394574016,1763727032339,-414.0,0.00016972,2]
[394574018,1763727032348,-1184.60297874,0.00017268,2]
[394574020,1763727032357,-37008.6704446,0.00017989,2]
[394574022,1763727032366,-500.0,0.00017989,2]
[394574024,1763727032376,-731.81,0.00018049,3]
[394574026,1763727032385,-243.92,0.00018059,3]
[394574027,1763727032393,-1184.60297874,0.00018069,2]
[394574029,1763727032403,-487.84,0.00018091,3]
[394574031,1763727032412,-1722.55388233,0.00018101,2]
[394574033,1763727032421,-500.0,0.00018263,2]
[394574035,1763727032430,-285.0,0.00018465,2]
[394574037,1763727032440,-500.0,0.00018537,2]
[394574039,1763727032449,-155.485,0.00018589,2]
[394574041,1763727032458,-224.20643302,0.00018633,2]
[394574043,1763727032467,-250.0,0.00018633,2]
[394574045,1763727032476,-151.0,0.00018633,2]
[394574047,1763727032484,-250.0,0.00018633,2]
[394574049,1763727032493,-151.0,0.00018633,2]
[394574051,1763727032502,-250.0,0.00018633,2]
[394574053,1763727032512,-192.62755413,0.00018633,2]
[394574055,1763727032521,-151.0,0.00018633,2]
[394574057,1763727032530,-250.0,0.00018633,2]
[394574058,1763727032715,-250.0,0.00018633,2]
[394574059,1763727032726,-151.0,0.00018633,2]
[394574061,1763727032735,-250.0,0.00018633,2]
[394574062,1763727032744,-213.99195881,0.00018633,2]
[394574064,1763727032753,-250.0,0.00018633,2]
[394574066,1763727032762,-250.0,0.00018633,2]
[394574068,1763727032771,-151.0,0.00018633,2]
[394574070,1763727032784,-250.0,0.00018633,2]
[394574072,1763727032793,-250.0,0.00018633,2]
[394574074,1763727032802,-151.0,0.00018633,2]
[394574076,1763727032811,-250.0,0.00018633,2]
[394574078,1763727032822,-250.0,0.00018633,2]
[394574080,1763727032831,-250.0,0.00018633,2]
[394574082,1763727032840,-151.0,0.00018633,2]
[394574084,1763727032849,-250.0,0.00018633,2]
[394574086,1763727032860,-270.90705816,0.00018633,2]
[394574088,1763727032869,-245.0,0.00018633,2]
[394574090,1763727032878,-250.0,0.00018633,2]
[394574092,1763727032887,-250.0,0.00018633,2]
[394574094,1763727032898,-250.0,0.00018633,2]
[394574096,1763727032907,-250.0,0.00018633,2]
[394574098,1763727032916,-250.0,0.00018633,2]
[394574100,1763727032926,-250.0,0.00018633,2]
[394574102,1763727032935,-250.0,0.00018633,2]
[394574104,1763727032944,-250.0,0.00018633,2]
[394574106,1763727032954,-250.0,0.00018633,2]
[394574108,1763727032963,-250.0,0.00018633,2]
[394574110,1763727032972,-250.0,0.00018633,2]
[394574113,1763727032981,-250.0,0.00018633,2]
[394574115,1763727032991,-975.69,0.00018798,3]
[394574117,1763727033002,-3000.0,0.00018808,2]
[394574119,1763727033011,-500.0,0.00018811,2]
[394574121,1763727033020,-1184.60297874,0.0001887,2]
[394574123,1763727033029,-173.049,0.00019,2]
[394574125,1763727033039,-500.0,0.00019085,2]
[394574127,1763727033049,-500.0,0.00019359,2]
[394574129,1763727033058,-487.84,0.00019429,3]
[394574130,1763727033068,-975.68,0.00019461,3]
[394574132,1763727033078,-169.454749,0.0001963,2]
[394574135,1763727033088,-1184.60297874,0.0001967,2]
[394574137,1763727033098,-1512.3457792,0.00019783,2]
[394574138,1763727033107,-150.0,0.00019803,2]
[394574141,1763727033116,-500.0,0.0001981,2]
[394574143,1763727033126,-437.94,0.0001989,3]
[394574145,1763727033135,-218.97,0.0001989,3]
[394574147,1763727033145,-50000.0,0.000199,2]
[394574149,1763727033154,-3000.0,0.00019904,2]
[394574151,1763727033163,-414.0,0.00019972,2]
[394574153,1763727033172,-151.0,0.00019972,7]
[394574155,1763727033181,-151.0,0.00019972,7]
[394574157,1763727033190,-151.0,0.00019972,7]
[394574159,1763727033199,-151.0,0.00019972,7]